{"text_format":"1","workbook":"xlsx","n_sheets":1,"sheets":["conceptos"],"not_rendered":{"charts":0,"images":2,"macros":1,"external_links":0,"defined_names":1,"comments":0,"pivot_tables":0},"unopened":[],"bounds":{"document_bytes":16777216,"sheet_cells":100000,"rows_first":2000,"rows_last":500,"rows_between":2000,"halvings":0,"cell_chars":16384,"cell_head_chars":4096},"cells_cut":0,"cells_raw":0,"read":"whole","date_system":"1900"}

{"sheet":"conceptos","index":0,"n_rows":86,"n_cols":8,"rows_kept":86,"cut":false,"hidden":false,"merged":[[83,0,83,4],[84,0,85,4],[13,0,13,6],[0,2,0,5],[9,2,9,5],[1,2,3,5],[4,2,4,3],[6,2,6,3],[7,2,7,3],[4,4,4,5],[5,4,5,5],[6,4,6,5],[7,4,7,5],[10,2,10,5],[11,2,11,5],[5,1,8,1]]}
[null,"GOBIERNO DEL ESTADO DE JALISCO","LICITACIÓN PÚBLICA ESTATAL"]
[null,"INSTITUTO DE LA INFRAESTRUCTURA FÍSICA EDUCATIVA DEL","E-REM-B-CON-04052-LP-0148-2020"]
[null,"ESTADO DE JALISCO"]
[]
[null,"DESCRIPCIÓN GENERAL DE LOS TRABAJOS:","FECHA DE INICIO:"]
[null,null,null,"FECHA DE TERMINACIÓN:"]
[null,null,"PLAZO DE EJECUCIÓN:"]
[null,null,"FECHA:"]
[]
[null,"RAZÓN SOCIAL DEL LICITANTE:","NOMBRE, CARGO Y FIRMA DEL LICITANTE:",null,null,null,"DOCUMENTO"]
[]
[]
[]
["PRESUPUESTO DE OBRA"]
[]
["CLAVE","DESCRIPCIÓN","UNIDAD","CANTIDAD","PRECIO UNITARIO ($)","PRECIO UNITARIO ($) CON LETRA","IMPORTE ($) M.N."]
["TRABAJO : BAS-CON-04052","CONSTRUCCIÓN DE PATIO CÍVICO, BARDA Y MALLA PERIMETRAL EN LA ESCUELA PRIMARIA RAMÓN GARCÍA RUÍZ CCT 14EPR0121K, UBICADA EN LA LOCALIDAD TIERRAS BLANCAS, MUNICIPIO DE CUAUTITLÁN DE GARCÍA BARRAGÁN, JALISCO.",null,null,null,null,{"$f":"TEXT(SUM(G18 + G21 + G41 + G64), \"$ #,##0.00 ;\")","v":"$ 0.00 "}]
["D","EDIFICIO D",null,null,null,null,{"$f":"TEXT((G19), \"$ #,##0.00 ;\")","v":"$ 0.00 "}]
["D.01(140)","DEMOLICIONES, DESMONTAJES Y MECANICA DE SUELOS    ",null,null,null,null,{"$f":"TEXT(SUM(G20:G20), \"$ #,##0.00 ;\")","v":"$ 0.00 "}]
[999127,"DESMANTELAMIENTO DE AULA PREFABRICADA DE ESTRUCTURA METALICA LAMINA O PVC DE INTRA-SYSTEM Y/O CALIFORNIANO CON RECUPERACION AL 100% INCLUYE: CORTE DE ELEMENTOS PARA ANCLAJE EN CIMENTACION A NIVEL DE PISO TERMINADO, REPARACION Y RESANES NECESARIOS EN PISO DE CONCRETO,  ESTRUCTURA, ACCESORIOS, CANCELERIA, PUERTAS, CRISTALES, CERRADURA, LAMPARAS, ARNES ELECTRICO, CUBIERTA,  HERRAMIENTAS, PLAFON,  MANO DE OBRA, SELECCION E IDENTIFICACION DE ELEMENTOS, ACOPIO Y MOVIMIENTOS DENTRO DE LA OBRA. SE CONSIDERARA PARA SU COBRO EL AREA DE PROYECCION DE LA CUBIERTA.","M2 ","67.3500",0,"CERO PESOS 00/100 M.N.",0,300073]
["01","PLAZA Y ANDADORES",null,null,null,null,{"$f":"TEXT(SUM(G22 + G29 + G37), \"$ #,##0.00 ;\")","v":"$ 0.00 "}]
["01.01(150)","TRABAJOS PRELIMINARES                             ",null,null,null,null,{"$f":"TEXT(SUM(G23:G28), \"$ #,##0.00 ;\")","v":"$ 0.00 "}]
[150020,"LIMPIEZA DE TERRENO RETIRANDO BASURA Y DESHIERBE FUERA DE LA OBRA. INCLUYE: HERRAMIENTAS, MANO DE OBRA, RECOLECCION, JUNTA Y RETIRO. (PROYECCION DE CUBIERTA).","M2 ","33.0000",0,"CERO PESOS 00/100 M.N.",0,300074]
[150120,"TRAZO Y NIVELACION DE EXTERIORES ESTABLECIENDO REFERENCIAS DEFINITIVAS, CON TRANSITO Y NIVEL (EQUIPO TOPOGRAFICO), INCLUYE: PERSONAL TECNICO CALIFICADO, ESTACAS, MOJONERAS, LOCALIZACION DE EJES Y/O ENTRE EJES, BANCOS DE NIVEL, MATERIALES PARA SEÑALAMIENTO, EQUIPO, HERRAMIENTA Y MANO DE OBRA.","M2 ","33.0000",0,"CERO PESOS 00/100 M.N.",0,300076]
[150210,"DESPALME DE TERRENO NATURAL POR CUALQUIER MEDIO, CON ESPESOR PROMEDIO DE 20 CM. INCLUYE: CARGA Y ACARREO DEL PRODUCTO FUERA DE LA OBRA, MANO DE OBRA, HERRAMIENTA Y EQUIPO. (PROYECCION DE CUBIERTA).","M2 ","33.0000",0,"CERO PESOS 00/100 M.N.",0,300078]
[152204,"EXCAVACION EN CEPAS POR CUALQUIER MEDIO, MATERIAL TIPO \"B\", DE 0 A 2.00 M. DE PROFUNDIDAD, EN SECO, INCLUYE: AFINE DE TALUDES Y FONDO, TRASPALEOS,  MOVIMIENTOS Y ACARREOS DENTRO DE LA OBRA, HERRAMIENTAS Y MANO DE OBRA, MEDIDO EN BANCO.","M3 ","3.9500",0,"CERO PESOS 00/100 M.N.",0,300079]
[152404,"EXCAVACION A CIELO ABIERTO EN CAJON POR CUALQUIER MEDIO, MATERIAL TIPO \"B\", DE 0 A 2.00 M. DE PROFUNDIDAD, EN SECO, INCLUYE: AFINE DE TALUDES Y FONDO, TRAPALEOS,  MOVIMIENTOS Y ACARREOS DENTRO DE LA OBRA, HERRAMIENTAS Y MANO DE OBRA, MEDIDO EN BANCO.","M3 ","6.7500",0,"CERO PESOS 00/100 M.N.",0,300081]
[156002,"CARGA POR CUALQUIER MEDIO Y ACARREO EN CAMION DE MATERIAL DE DESPERDICIO PRODUCTO DE LAS EXCAVACIONES FUERA DE LA OBRA, A LUGAR PERMITIDO POR LAS AUTORIDADES CORRESPONDIENTES, MEDIDO EN BANCO. INCLUYE CARGA,  ACARREO Y DESCARGA A TIRO LIBRE, HERRAMIENTA, EQUIPO, MATERIALES DE CONSUMO Y MANO DE OBRA.","M3 ","7.5000",0,"CERO PESOS 00/100 M.N.",0,300082]
["01.02(160)","CIMENTACION                                       ",null,null,null,null,{"$f":"TEXT(SUM(G30:G36), \"$ #,##0.00 ;\")","v":"$ 0.00 "}]
[162002,"CIMIENTO DE PIEDRA BRAZA ACOMODADA PIEDRA POR PIEDRA, ASENTADA CON MORTERO CEMENTO-ARENA  EN PROPORCION 1:3. INCLUYE: MATERIALES, DESPERDICIOS, HERRAMIENTAS, LIMPIEZA, MANO DE OBRA Y ACARREO DE MATERIALES AL SITIO DE SU UTILIZACION.","M3 ","2.8000",0,"CERO PESOS 00/100 M.N.",0,300084]
[162302,"RODAPIE DE PIEDRA BRAZA, ACABADO APARENTE UNA CARA, ASENTADA CON MORTERO CEMENTO-ARENA 1:3. INCLUYE: MATERIALES, HERRAMIENTAS, PLOMEO,   LIMPIEZA, MANO DE OBRA Y ACARREO DE MATERIALES AL SITIO DE SU UTILIZACION.","M3 ","1.3500",0,"CERO PESOS 00/100 M.N.",0,300087]
[162404,"NIVELACION DE MURO DE MAMPOSTERIA CON RAJUELA DE PIEDRA BRAZA JUNTEADA CON MORTERO CEM-ARE 1:3. DE 0.10 M. DE ESPESOR X 0.40 M. DE ANCHO PROMEDIO. INCLUYE: NIVELACION, TRAZO, MANO DE OBRA Y HERRAMIENTA. (NO INCLUYE MATERIALES)","ML ","10.9500",0,"CERO PESOS 00/100 M.N.",0,300088]
[180039,"AFINE Y CONFORMACION DE TERRENO NATURAL Y/O EN AREA DE CORTES, CON UN ESPESOR DE 15 CMS.,  AL 90% PROCTOR MEDIDO COMPACTO, REALIZADO EN FORMA MECANICA CON RODILLO VIBRATORIO, INCLUYE:SUMINISTRO DE AGUA PARA LOGRAR HUMEDAD OPTIMA, EQUIPO MECANICO PESADO, PRUEBAS DE COMPACTACION, AFINE, NIVELACION, HERRAMIENTAS Y MANO DE OBRA.","M2 ","33.0000",0,"CERO PESOS 00/100 M.N.",0,300090]
[180059,"RELLENO COMPACTADO CON EQUIPO MECANICO DE SUELO-CEMENTO, A BASE DE MATERIAL DE BANCO (TEPETATE) EN PROPORCIÓN DE 50 KGS. DE CEMENTO GRIS POR M3. EN CEPAS O CAJON, A CUALQUIER PROFUNDIDAD, COMPACTADO AL 95% PROCTOR, EN CAPAS DE 15 CM. INCLUYE:SUMINISTRO DE AGUA PARA LOGRAR HUMEDAD OPTIMA, MEZCLACO, TENDIDO, TRASPALEOS,  DESPERDICIOS, EQUIPO, PRUEBAS DE COMPACTACION, AFINE, NIVELACION, HERRAMIENTAS, MANO DE OBRA Y  ACARREO HASTA EL SITIO DE SU COLOCACION.  (VOLUMEN MEDIDO COMPACTADO).","M3 ","6.7500",0,"CERO PESOS 00/100 M.N.",0,300091]
[180102,"RELLENO COMPACTADO AL 90 % PROCTOR, CON MATERIAL DE BANCO, EN CAPAS DE 20 CM DE ESPESOR, AGREGANDO AGUA PARA LOGRAR SU HUMEDAD OPTIMA, AL 90%. POR CUALQUIER MEDIO, INCLUYE: SUMINISTRO DE AGUA PARA LOGRAR HUMEDAD OPTIMA, TENDIDO, TRASPALEOS,  DESPERDICIOS, EQUIPO, PRUEBAS DE COMPACTACION, AFINE, NIVELACION, HERRAMIENTAS, MANO DE OBRA Y  ACARREO HASTA EL SITIO DE SU COLOCACION.  (VOLUMEN MEDIDO COMPACTADO).","M3 ","9.9400",0,"CERO PESOS 00/100 M.N.",0,300092]
[182014,"RELLENO COMPACTADO POR CUALQUIER MEDIO, CON GRAVA DE 1 1/2\" DE DIAMETRO, PARA ELIMINAR REBOTE ELASTICO EN BASE DE LA ZAPATA, ESTRUCTURA DE PISOS Y/O COMO FILTRO, EN CAPAS DE 15 CM. APROXIMADAMENTE, VOLUMEN MEDIDO YA COLOCADO, INCLUYE: MATERIALES, BANDEO, COMPACTACION, TENDIDO, EQUIPO,  NIVELADO, DESPERDICIOS, FLETES, TRASPALEOS, HERRAMIENTAS, MANO DE OBRA, CARGA Y ACARREO DE  MATERIAL AL SITIO DE SU COLOCACION.","M3 ","6.7500",0,"CERO PESOS 00/100 M.N.",0,300094]
["01.03(372)","PISOS                                             ",null,null,null,null,{"$f":"TEXT(SUM(G38:G40), \"$ #,##0.00 ;\")","v":"$ 0.00 "}]
[373022,"PISO DE CONCRETO F'C=150 KG/CM², T.M.A. 3/4\", DE 0.10 M. DE ESPESOR, COLADO EN CUADROS NO MAYORES DE 3.00 ML POR LADO, INCLUYE: TRAZO, NIVELACION, AFINE Y COMPACTACION DEL TERRENO, AGUA, DESPERDICIOS, ACARREOS, REGLEADO, ACABADO INTEGRAL RAYADO CON BROCHA DE PELO (SIN UTILIZACION DE PASTA), CIMBRA EN FRONTERAS, DESCIMBRA, COLADO, CURADO, REMATES, ESCALONADO, MUESTREADO, JUNTAS FRIAS CON VOLTEADOR, HERRAMIENTAS Y MANO DE OBRA.","M2 ","33.0000",0,"CERO PESOS 00/100 M.N.",0,300103]
[373766,"FORJADO DE NARIZ DE REMATE EN PISO DE  BANQUETAS, CON 10.0  X  10.0 CM. DE SECCION, INCLUYE SOLO: CIMBRA APARENTE, DESCIMBRA, GOTERO, FORJADO, CHAFLANES, PERFILADO, DESPERDICIOS, HERRAMIENTAS, Y MANO DE OBRA. (NO INCLUYE CONCRETO).","ML ","10.9500",0,"CERO PESOS 00/100 M.N.",0,300104]
[375339,"FORJADO DE ESCALON DE 30 CM. DE HUELLA Y 15 CM DE PERALTE CON RODAPIE DE PIEDRA, ASENTADO CON MORTERO CEMENTO-CAL-ARENA 1:3.:12 Y PISO DE CONCRETO F'C=150 KG/CM2 DE 10 CM DE ESPESOR, USAR VOLTEADOR EN LA PARTE SUPERIOR  EN HUELLA, ACABADO PULIDO Y/O APALILLADO, EL PERALTE TAMBIEN SERA FORJADO DE PIEDRA DE LAS MISMAS CARACTERISTICAS,  INCLUYE: LIMPIEZA, TRAZO, EXCAVACIONES, HERRAMIENTAS, MATERIALES, CIMENTACION, NIVELACION, CIMBRA APARENTE, DESCIMBRADO, DESPERDICIOS, COLADO, VIBRADO, CURADO, NARIZ PERIMETRAL, RELLENOS COMPACTADOS, MANO DE OBRA, Y ACARREO DEL MATERIAL AL SITIO DE SU UTILIZACION.","ML ","15.0000",0,"CERO PESOS 00/100 M.N.",0,300105]
["33A","MURO DIVISORIO",null,null,null,null,{"$f":"TEXT(SUM(G42 + G47 + G53 + G59 + G62), \"$ #,##0.00 ;\")","v":"$ 0.00 "}]
["33A.01(150)","TRABAJOS PRELIMINARES                             ",null,null,null,null,{"$f":"TEXT(SUM(G43:G46), \"$ #,##0.00 ;\")","v":"$ 0.00 "}]
[150020,"LIMPIEZA DE TERRENO RETIRANDO BASURA Y DESHIERBE FUERA DE LA OBRA. INCLUYE: HERRAMIENTAS, MANO DE OBRA, RECOLECCION, JUNTA Y RETIRO. (PROYECCION DE CUBIERTA).","M2 ","4.9000",0,"CERO PESOS 00/100 M.N.",0,300075]
[150120,"TRAZO Y NIVELACION DE EXTERIORES ESTABLECIENDO REFERENCIAS DEFINITIVAS, CON TRANSITO Y NIVEL (EQUIPO TOPOGRAFICO), INCLUYE: PERSONAL TECNICO CALIFICADO, ESTACAS, MOJONERAS, LOCALIZACION DE EJES Y/O ENTRE EJES, BANCOS DE NIVEL, MATERIALES PARA SEÑALAMIENTO, EQUIPO, HERRAMIENTA Y MANO DE OBRA.","M2 ","4.9000",0,"CERO PESOS 00/100 M.N.",0,300077]
[152204,"EXCAVACION EN CEPAS POR CUALQUIER MEDIO, MATERIAL TIPO \"B\", DE 0 A 2.00 M. DE PROFUNDIDAD, EN SECO, INCLUYE: AFINE DE TALUDES Y FONDO, TRASPALEOS,  MOVIMIENTOS Y ACARREOS DENTRO DE LA OBRA, HERRAMIENTAS Y MANO DE OBRA, MEDIDO EN BANCO.","M3 ","24.0000",0,"CERO PESOS 00/100 M.N.",0,300080]
[156002,"CARGA POR CUALQUIER MEDIO Y ACARREO EN CAMION DE MATERIAL DE DESPERDICIO PRODUCTO DE LAS EXCAVACIONES FUERA DE LA OBRA, A LUGAR PERMITIDO POR LAS AUTORIDADES CORRESPONDIENTES, MEDIDO EN BANCO. INCLUYE CARGA,  ACARREO Y DESCARGA A TIRO LIBRE, HERRAMIENTA, EQUIPO, MATERIALES DE CONSUMO Y MANO DE OBRA.","M3 ","2.4000",0,"CERO PESOS 00/100 M.N.",0,300083]
["33A.02(160)","CIMENTACION                                       ",null,null,null,null,{"$f":"TEXT(SUM(G48:G52), \"$ #,##0.00 ;\")","v":"$ 0.00 "}]
[162002,"CIMIENTO DE PIEDRA BRAZA ACOMODADA PIEDRA POR PIEDRA, ASENTADA CON MORTERO CEMENTO-ARENA  EN PROPORCION 1:3. INCLUYE: MATERIALES, DESPERDICIOS, HERRAMIENTAS, LIMPIEZA, MANO DE OBRA Y ACARREO DE MATERIALES AL SITIO DE SU UTILIZACION.","M3 ","2.4000",0,"CERO PESOS 00/100 M.N.",0,300085]
[162116,"MAMPOSTERIA DE PIEDRA BRAZA, ACABADO APARENTE DOS CARAS DE 0 A 1.50 MTS, ASENTADA CON  CEMENTO-ARENA 1:3, INCLUYE: MATERIALES, HERRAMIENTAS, PLOMEO,  LIMPIEZA, MANO DE OBRA Y ACARREO DE MATERIALES AL SITIO DE SU UTILIZACION.","M3 ","2.2000",0,"CERO PESOS 00/100 M.N.",0,300086]
[162404,"NIVELACION DE MURO DE MAMPOSTERIA CON RAJUELA DE PIEDRA BRAZA JUNTEADA CON MORTERO CEM-ARE 1:3. DE 0.10 M. DE ESPESOR X 0.40 M. DE ANCHO PROMEDIO. INCLUYE: NIVELACION, TRAZO, MANO DE OBRA Y HERRAMIENTA. (NO INCLUYE MATERIALES)","ML ","8.1500",0,"CERO PESOS 00/100 M.N.",0,300089]
[180102,"RELLENO COMPACTADO AL 90 % PROCTOR, CON MATERIAL DE BANCO, EN CAPAS DE 20 CM DE ESPESOR, AGREGANDO AGUA PARA LOGRAR SU HUMEDAD OPTIMA, AL 90%. POR CUALQUIER MEDIO, INCLUYE: SUMINISTRO DE AGUA PARA LOGRAR HUMEDAD OPTIMA, TENDIDO, TRASPALEOS,  DESPERDICIOS, EQUIPO, PRUEBAS DE COMPACTACION, AFINE, NIVELACION, HERRAMIENTAS, MANO DE OBRA Y  ACARREO HASTA EL SITIO DE SU COLOCACION.  (VOLUMEN MEDIDO COMPACTADO).","M3 ","0.2500",0,"CERO PESOS 00/100 M.N.",0,300093]
[192810,"BASE PARA CASTILLO DE 40.0 X 40.0 X 50.0 CM, EN CIMENTACION DE PIEDRA, CON CONCRETO F'C=150 KG/CM2, TMA=3/4\", CON 4 VARILLAS DE 3/8\" DE DIAMETRO Y ESTRIBOS DE 1/4\" @ 15.0 CM. CIMBRA COMUN,  INCLUYE: CIMBRADO Y DESCIMBRADO, COLADO, VIBRADO, CURADO, MATERIALES, DESPERDICIOS, HERRAMIENTAS, LIMPIEZA, MANO DE OBRA Y ACARREO DE MATERIALES AL SITIO DE SU UTILIZACION.","PZA","3.0000",0,"CERO PESOS 00/100 M.N.",0,300095]
["33A.03(310)","MUROS, CADENAS, CASTILLOS Y REPIZONES.            ",null,null,null,null,{"$f":"TEXT(SUM(G54:G58), \"$ #,##0.00 ;\")","v":"$ 0.00 "}]
[167204,"DALA DE DESPLANTE DE CONCRETO F´C= 150 KG/CM2, T.M.A.= 3/4\", CON SECCION DE 14 X 20 CM., ARMADA CON 4 VARILLAS DEL #3 Y ESTRIBOS DEL #2 @ 20 CM., INCLUYE: ARMADO, COLADO, CURADO, VIBRADO, CIMBRA COMUN, DESCIMBRA, DESPERDICIOS, TRASLAPES, CRUCES DE VARILLAS CON ELEMENTOS TRANSVERSALES, ANDAMIOS, MANO DE OBRA, HERRAMIENTA Y ACARREO DE MATERIALES AL SITIO DE SU UTILIZACION, A CUALQUIER ALTURA.","ML ","8.4500",0,"CERO PESOS 00/100 M.N.",0,300096]
[310207,"DALA DE CONCRETO F'C=150 KG/CM2, T.M.A.=3/4\", CON SECCION DE 14 X 15 CMS., ARMADA CON 4 VARILLAS DEL # 3 Y ESTRIBOS DEL NO. 2 @ 15 CMS., INCLUYE: ARMADO, COLADO, CURADO, VIBRADO, CIMBRA COMUN, DESCIMBRA, TRASLAPES, CRUCES DE VARILLAS CON ELEMENTOS TRANSVERSALES, DESPERDICIOS, MANO DE OBRA, HERRAMIENTA Y ACARREO DE MATERIALES AL SITIO DE SU UTILIZACION, A CUALQUIER ALTURA.","ML ","8.1500",0,"CERO PESOS 00/100 M.N.",0,300097]
[312210,"CASTILLO DE CONCRETO F´C= 150 KGS/CM2 CON UNA SECCION DE 14 X 15 CM., ARMADO CON 4 VARILLAS DEL #3, ESTRIBOS DEL #2@15 CM.  INCLUYE: ARMADO, COLADO, CURADO, VIBRADO, CIMBRA COMUN, DESCIMBRA, TRASLAPES, CRUCES DE VARILLAS CON ELEMENTOS TRANSVERSALES, DESPERDICIOS, MANO DE OBRA, HERRAMIENTA Y ACARREO DE MATERIALES AL SITIO DE SU UTILIZACION, A CUALQUIER ALTURA.","ML ","7.4000",0,"CERO PESOS 00/100 M.N.",0,300098]
[314032,"MURO DE TABIQUE DE LAMA, DE 14 CMS. DE ESPESOR PROMEDIO, A SOGA, CON TABIQUE DE LAMA 7 X 14 X 28 CMS., ACABADO COMUN, ASENTADO CON MORTERO CEMENTO-ARENA EN PROPORCION 1:3, EN CUALQUIER NIVEL, INCLUYE: TRAZO, NIVELACION, PLOMEO, ANDAMIOS, DESPERDICIOS, MANO DE OBRA, LIMPIEZA Y ACARREO DE MATERIALES AL SITIO DE SU UTILIZACION.","M2 ","15.5500",0,"CERO PESOS 00/100 M.N.",0,300099]
[373502,"CEJA DE CONCRETO F'C=150 KG/CM2, TMA=3/4\" DE 12.0 X 18.0 CM DE SECCION PROMEDIO, ARMADA CON 1 VARILLA #3 (3/8\") Y ESTRIBOS DE 1/4\" @ 25.0 CM, EN CUALQUIER NIVEL. INCLUYE: CIMBRA APARENTE, DESCIMBRA, COLADO, VIBRADO, CURADO, PERFILADO, CHAFLANES, GOTERO, LIMPIEZA, HERRAMIENTAS, MATERIALES, DESPERDICIOS Y MANO DE OBRA.","ML ","16.2500",0,"CERO PESOS 00/100 M.N.",0,300100]
["33A.04(355)","RECUBRIMIENTOS Y ACABADOS                         ",null,null,null,null,{"$f":"TEXT(SUM(G60:G61), \"$ #,##0.00 ;\")","v":"$ 0.00 "}]
[355022,"APLANADO DE MUROS Y/O TECHOS CON MORTERO CEMENTO-CAL-ARENA DE RIO EN PROP. 1:2:6 DE 2 CM. DE ESPESOR PROMEDIO, A PLOMO Y REGLA, ACABADO APALILLADO FINO, INCLUYE: MATERIALES, DESPERDICIOS, ANDAMIOS, HERRAMIENTAS, PLOMEO, NIVELACION, REMATES, LIMPIEZA DEL AREA DE TRABAJO Y ACARREO DE MATERIALES AL SITIO DE SU UTILIZACION. A CUALQUIER NIVEL.\n","M2 ","38.2500",0,"CERO PESOS 00/100 M.N.",0,300101]
[357310,"BOQUILLAS EN MUROS DE 17 CMS DE ANCHO PROMEDIO, CON MORTERO CEM-ARE 1:4, ACABADO A PLOMO Y REGLA, INCLUYE REMATES Y ACARREO DE MATERIALES AL SITIO DE SU UTILIZACION A CUALQUIER NIVEL.","ML ","8.2500",0,"CERO PESOS 00/100 M.N.",0,300102]
["33A.05(393)","PINTURA                                           ",null,null,null,null,{"$f":"TEXT(SUM(G63:G63), \"$ #,##0.00 ;\")","v":"$ 0.00 "}]
[393022,"PINTURA VINIL-ACRÍLICA A BASE DE AGUA ACABADO SEMIMATE  LAVABLE, PARA INTERIORES Y EXTERIORES QUE NO DESPRENDA VAPORES TÓXICOS NI OLORES DESAGRADABLES, CON LAS SIGUIENTES CARACTERÍSTICAS ( SÓLIDOS POR PESO 46-52%, SÓLIDOS POR VOLUMEN 30-36%, VISCOSIDAD DE 100-130 UK A 25°C, DENSIDAD > O = 1.2 TON/M3., LAVABILIDAD > O = 4,000 CICLOS, TIEMPO DE SECADO AL TACTO, 30-40 MIN., TIEMPO DE SECADO DURO < O = 8 HRS., CICLO DE CURADO DE 7 DIAS, PH 6-8, RENDIMIENTO EN SUP. LISA 8-10 M2/LT., FINEZA DE MOLIDO (HEGMAN) 3-7 UH.)  EN MUROS APLANADOS DE MEZCLA APALILLADO O PULIDO, TRABAJO TERMINADO, A DOS MANOS, INCLUYE: MATERIALES MENORES Y DE CONSUMO, ANDAMIOS, PREPARACION DE LA SUPERFICIE, SELLADO DE LA SUPERFICIE, HERRAMIENTAS, LIMPIEZA, MANO DE OBRA Y  ACARREOS DE MATERIALES AL SITIO DE SU UTILIZACIÓN.","M2 ","39.7500",0,"CERO PESOS 00/100 M.N.",0,300107]
[21,"MALLA",null,null,null,null,{"$f":"TEXT((G65), \"$ #,##0.00 ;\")","v":"$ 0.00 "}]
["21.01(372)","PISOS                                             ",null,null,null,null,{"$f":"TEXT(SUM(G66:G66), \"$ #,##0.00 ;\")","v":"$ 0.00 "}]
[428022,"SUMINISTRO E INSTALACION DE CERCA DE MALLA DE ALAMBRE GALVANIZADO CAL. 10.50, CON ABERTURA DE 55 X 55 MM DE 2.00 MT ALTURA, CON MARCO SUPERIOR DE TUBO GALVANIZADO DE 42 MM DIAM. CAL 20,  ALAMBRE LISO GALVANIZADO CAL. 10.5 EN REMATE INFERIOR, ALAMBRE DE PUAS CAL. 12.5 (3 HILOS), POSTE DE LINEA DE TUBO GALVANIZADO DE 48 MM. DE DIAM. CAL. 18 DE 2.00 MTS. DE ALTURA Y 0.40 MTS. DE CIMENTACION MAS BAYONETA, POSTES ESQUINEROS O REFUERZOS CON TUBO GALVANIZADO DE 60 MM. DE DIAM. CAL. 26 X 2.00 MTS. DE ALTURA Y 0.40 MTS. DE CIMENTACION MAS OCHAVO, Y POSTES CARGADORES CON TUBO GALVANIZADO DE 73 MM. DE DIAM. CAL. 16 Y 2.40 MTS. DE ALTURA MAS 0.50 MTS. DE CIMENTACION (TIPO INSTITUCIONAL), INCLUYE: LIMPIEZA DE TERRENO, TRAZO, EXCAVACIONES, AHOGADO DE POSTES EN CONCRETO F'C=150 KG/CM2, MANO DE OBRA EN COLOCACION DE MALLA Y ACCESORIOS, EQUIPO, HERRAMIENTA Y LIMPIEZA (TODO GALVANIZADO POR INMERSION EN CALIENTE).","ML ","28.0000",0,"CERO PESOS 00/100 M.N.",0,300106]
[null,"RESUMEN DE PARTIDAS"]
["BAS-CON-04052","CONSTRUCCIÓN DE PATIO CÍVICO, BARDA Y MALLA PERIMETRAL EN LA ESCUELA PRIMARIA RAMÓN GARCÍA RUÍZ CCT 14EPR0121K, UBICADA EN LA LOCALIDAD TIERRAS BLANCAS, MUNICIPIO DE CUAUTITLÁN DE GARCÍA BARRAGÁN, JALISCO.",null,null,null,null,{"$f":"G17","v":"$ 0.00 "}]
["D","EDIFICIO D",null,null,null,null,{"$f":"G18","v":"$ 0.00 "}]
["D.01(140)","DEMOLICIONES, DESMONTAJES Y MECANICA DE SUELOS    ",null,null,null,null,{"$f":"G19","v":"$ 0.00 "}]
["01","PLAZA Y ANDADORES",null,null,null,null,{"$f":"G21","v":"$ 0.00 "}]
["01.01(150)","TRABAJOS PRELIMINARES                             ",null,null,null,null,{"$f":"G22","v":"$ 0.00 "}]
["01.02(160)","CIMENTACION                                       ",null,null,null,null,{"$f":"G29","v":"$ 0.00 "}]
["01.03(372)","PISOS                                             ",null,null,null,null,{"$f":"G37","v":"$ 0.00 "}]
["33A","MURO DIVISORIO",null,null,null,null,{"$f":"G41","v":"$ 0.00 "}]
["33A.01(150)","TRABAJOS PRELIMINARES                             ",null,null,null,null,{"$f":"G42","v":"$ 0.00 "}]
["33A.02(160)","CIMENTACION                                       ",null,null,null,null,{"$f":"G47","v":"$ 0.00 "}]
["33A.03(310)","MUROS, CADENAS, CASTILLOS Y REPIZONES.            ",null,null,null,null,{"$f":"G53","v":"$ 0.00 "}]
["33A.04(355)","RECUBRIMIENTOS Y ACABADOS                         ",null,null,null,null,{"$f":"G59","v":"$ 0.00 "}]
["33A.05(393)","PINTURA                                           ",null,null,null,null,{"$f":"G62","v":"$ 0.00 "}]
[21,"MALLA",null,null,null,null,{"$f":"G64","v":"$ 0.00 "}]
["21.01(372)","PISOS                                             ",null,null,null,null,{"$f":"G65","v":"$ 0.00 "}]
[]
["IMPORTE CON LETRA (IVA INCLUIDO)",null,null,null,null,"SUBTOTAL M.N.",{"$f":"TEXT(G17,  \"$ #,##0.00 ;\")","v":"$ 0.00 "}]
[{"$f":"UPPER(CONVERTIRNUM(ROUND( G17 * 1.16, 2)))","v":"CERO PESOS 00/100 M.N."},null,null,null,null,"IVA M.N.",{"$f":"TEXT(ROUND( G17 * 0.16, 2),  \"$ #,##0.00 ;\")","v":"$ 0.00 "}]
[null,null,null,null,null,"TOTAL M.N.",{"$f":"TEXT(ROUND( G17 * 1.16, 2),  \"$ #,##0.00 ;\")","v":"$ 0.00 "}]